bitfinex/quotes_ETHUSD_20251107
["timestamp","ask_amount","ask_price","bid_price","bid_amount"]
[1762544166632,1e-08,3437.4,3437.3,2.90926017]
[1762544166851,1e-08,3437.9,3437.8,0.3455]
[1762544167007,3.08981255,3440.0,3438.8,2.90799115]
[1762544167008,0.6807,3439.5,3438.8,2.90799115]
[1762544167342,0.6807,3439.5,3438.8,3.25349115]
[1762544167496,0.1828,3440.0,3439.8,2.90714576]
[1762544167691,0.4986,3440.5,3439.8,3.25264576]
[1762544168192,0.4986,3440.5,3439.8,2.90714576]
[1762544168537,0.466,3439.9,3439.8,2.90714576]
[1762544168991,0.005,3439.9,3439.8,2.90714576]
[1762544169817,0.005,3439.9,3439.8,4.51235776]
[1762544170021,0.005,3439.9,3439.8,11.440811]
[1762544170405,0.005,3439.9,3439.8,11.095311]
[1762544171705,0.005,3439.9,3439.8,11.440811]
[1762544173027,0.005,3440.9,3440.8,2.90630086]
[1762544173337,0.005,3440.9,3440.8,3.39660086]
[1762544173545,0.005,3440.9,3440.8,5.00181286]
[1762544173546,1e-08,3440.9,3440.8,5.00181286]
[1762544173895,0.02063736,3441.7,3441.6,2.90562529]
[1762544174170,0.02063736,3441.7,3441.6,11.72985306]
[1762544174322,0.02063736,3441.7,3441.6,4.80139982]
[1762544174951,0.02063736,3441.7,3441.6,5.14689982]
[1762544176136,1e-08,3441.7,3441.6,5.14689982]
[1762544178531,1e-08,3441.7,3441.6,4.45589982]
[1762544178777,1e-08,3441.7,3441.6,4.16533729]
[1762544179261,1e-08,3441.7,3441.6,4.51083729]
[1762544180574,1e-08,3441.7,3441.6,4.16533729]
[1762544180767,0.46100001,3441.7,3441.6,1.259712]
[1762544180970,0.95960001,3441.7,3441.2,2.90589421]
[1762544181174,1.36479905,3441.7,3441.3,2.90586827]
[1762544181393,0.461,3441.4,3440.8,0.1143]
[1762544181612,0.461,3441.2,3441.1,2.90604046]
[1762544181900,0.4986,3441.5,3440.5,2.90655427]
[1762544182104,0.4986,3441.5,3441.0,2.90605524]
[1762544182398,0.461,3441.1,3440.9,2.90619847]
[1762544182699,0.4986,3441.5,3440.9,1.259712]
[1762544182892,0.461,3441.0,3440.9,4.16592839]
[1762544183096,0.4986,3441.4,3441.0,1.259712]
[1762544183601,1e-08,3441.7,3441.3,3.0506237]
[1762544183803,1e-08,3441.7,3441.3,0.1448]
[1762544183959,0.49860001,3441.7,3441.4,2.90579415]
[1762544184200,0.461,3441.5,3440.7,1.259712]
[1762544184390,0.461,3441.5,3441.1,2.90603668]
[1762544184596,0.4986,3441.4,3441.2,2.90594071]
[1762544184760,0.461,3441.1,3440.5,1.259712]
[1762544184955,0.461,3441.1,3441.0,2.90612657]
[1762544185186,0.461,3441.1,3441.0,3.05092657]
[1762544185386,0.461,3441.1,3441.0,4.31063857]
[1762544185783,0.9596,3441.1,3441.0,1.404512]
[1762544185991,0.461,3441.1,3441.0,4.31064393]
[1762544186189,0.4986,3441.4,3441.1,2.90597682]
[1762544186390,0.4986,3441.4,3441.1,2.90602935]
[1762544186597,0.461,3441.2,3441.0,1.404512]
[1762544186796,0.461,3441.1,3441.0,1.404512]
[1762544187181,0.9596,3441.1,3441.0,1.405512]
[1762544187898,0.9596,3441.1,3441.0,4.31164393]
[1762544188085,0.461,3441.1,3441.0,4.31164393]
[1762544188260,0.9596,3441.1,3441.0,1.405512]
[1762544188995,0.9596,3441.1,3441.0,4.31164393]
[1762544189485,0.9596,3441.1,3441.0,1.405512]
[1762544190788,0.461,3441.1,3441.0,4.31164393]
[1762544191099,0.9596,3441.1,3441.0,1.405512]
[1762544191798,4.27115148,3441.1,3441.0,0.1458]
[1762544192097,2.08573557,3441.1,3441.0,0.001]
[1762544192306,4.99178305,3441.1,3441.0,0.001]
[1762544192669,2.08573557,3441.1,3441.0,0.001]
[1762544192865,4.99178305,3441.1,3441.0,0.001]
[1762544193863,2.08573557,3441.1,3441.0,0.001]
[1762544194064,1.365104,3441.1,3441.0,0.001]
[1762544194503,4.27115148,3441.1,3441.0,0.001]
[1762544194801,1.365104,3441.1,3441.0,0.001]
[1762544195312,1.365104,3441.1,3441.0,2.90713193]
[1762544195520,0.00200001,3441.7,3441.0,0.001]
[1762544195719,0.405504,3441.5,3441.4,2.90572301]
[1762544196185,1.377804,3441.5,3441.4,2.90572301]
[1762544196384,0.9723,3441.5,3441.4,2.90572301]
[1762544197623,0.00200001,3441.7,3441.6,2.90562529]
[1762544198710,0.00200001,3441.7,3441.6,3.25112529]
[1762544198895,0.00200001,3441.7,3441.6,4.51083729]
[1762544199508,0.00200001,3441.7,3441.6,4.88539354]
[1762544200618,0.00200001,3441.7,3441.6,4.85633729]
[1762544202193,0.97430001,3441.7,3441.6,1.259712]
[1762544202509,0.00200001,3441.7,3441.6,4.16533729]
[1762544202909,0.97430001,3441.7,3441.6,0.1448]
[1762544203117,0.97430001,3441.7,3441.6,3.05042529]
[1762544203318,0.97430001,3441.7,3441.6,0.1448]
[1762544203842,0.97430001,3441.7,3441.6,3.05042529]
[1762544204047,0.97430001,3441.7,3441.6,0.1448]
[1762544205806,0.97430001,3441.7,3441.6,3.05042529]
[1762544206009,0.00200001,3441.7,3441.6,3.05042529]
[1762544206629,0.00200001,3441.7,3441.6,3.39592529]
[1762544207234,0.00200001,3441.7,3441.6,3.05042529]
[1762544207638,0.49590001,3441.7,3441.6,3.05042529]
[1762544207835,0.00200001,3441.7,3441.6,3.05042529]
[1762544208237,0.97030001,3441.7,3441.6,0.1448]
[1762544208439,0.405504,3441.6,3441.2,1.259712]
[1762544208749,0.4939,3441.3,3441.2,2.90595157]
[1762544209271,0.9683,3441.3,3441.2,3.05075157]
[1762544209739,0.9683,3441.3,3441.2,0.1448]
[1762544209940,0.4939,3441.3,3441.2,3.05076303]
[1762544210235,0.00200001,3441.7,3441.2,3.05073496]
[1762544210437,0.00200001,3441.7,3441.2,0.1448]
[1762544210668,0.00200001,3441.7,3441.1,0.001]
[1762544210669,0.00200001,3441.7,3441.6,2.90562529]
[1762544211592,0.00200001,3441.7,3441.1,0.001]
[1762544211593,0.49590001,3441.7,3441.1,0.001]
[1762544211880,0.899404,3441.2,3441.1,0.001]
[1762544212244,1.373804,3441.2,3441.1,0.001]
[1762544212772,0.405504,3441.2,3441.1,0.001]
[1762544212975,0.405504,3441.2,3441.1,2.90704748]
[1762544213341,0.899404,3441.2,3441.1,0.001]
[1762544213950,0.899404,3441.2,3441.1,2.90704748]
[1762544214385,0.405504,3441.2,3441.1,2.90704748]
[1762544214995,0.4744,3441.6,3441.1,2.90697248]
[1762544214996,0.405504,3441.5,3441.1,2.90697248]
[1762544215188,0.405504,3441.5,3441.2,2.90592897]
[1762544215381,0.405504,3441.4,3441.1,2.90703666]
[1762544215697,0.405504,3441.4,3441.1,0.001]
[1762544215992,0.40750401,3441.7,3441.5,2.90563286]
[1762544216360,0.00200001,3441.7,3441.5,2.90567501]
[1762544216667,0.9683,3441.6,3441.4,2.90576694]
[1762544216874,0.9683,3441.6,3441.1,0.1153]
[1762544216875,0.9683,3441.6,3441.5,2.90570971]
[1762544217073,0.4939,3441.6,3441.5,2.90570971]
[1762544217277,0.00200001,3441.7,3441.1,0.1153]
[1762544217497,0.00200001,3441.7,3441.5,2.90567846]
[1762544217796,0.00200001,3441.7,3441.1,0.1153]
[1762544217797,0.00200001,3441.7,3441.4,2.9057613]
[1762544218018,0.00200001,3441.7,3441.1,0.001]
[1762544218195,0.47640001,3441.7,3441.4,2.90575809]
[1762544218361,0.47640001,3441.7,3441.5,2.90570177]
[1762544218560,0.47640001,3441.7,3441.6,2.90562529]
[1762544218561,0.88190401,3441.7,3441.6,2.90562529]
[1762544219001,0.90140401,3441.7,3441.6,2.90562529]
[1762544219213,0.00200001,3441.7,3441.6,2.90562529]
[1762544220569,0.00200001,3441.7,3441.6,3.39592529]
[1762544220808,0.00200001,3441.7,3441.6,4.88539354]
[1762544221017,0.00200001,3441.7,3441.6,4.51083729]
[1762544221182,0.00200001,3441.7,3441.6,4.16533729]
[1762544221865,0.00200001,3441.7,3441.6,4.51083729]
[1762544222677,0.00200001,3441.7,3441.6,4.16533729]
[1762544223080,0.46280001,3441.7,3441.6,4.16533729]
[1762544223481,0.00200001,3441.7,3441.6,4.16533729]
[1762544224188,0.00200001,3441.7,3441.6,2.90562529]
[1762544224393,0.46280001,3441.7,3441.6,2.90562529]
[1762544224591,0.93600001,3441.7,3441.6,2.90562529]
[1762544224794,0.46280001,3441.7,3441.6,2.90562529]
[1762544225000,0.00200001,3441.7,3441.6,2.90562529]
[1762544225702,0.93600001,3441.7,3441.5,2.90567462]
[1762544225901,0.46280001,3441.7,3441.5,2.90570883]
[1762544226066,0.00200001,3441.7,3441.6,2.90562529]
[1762544226907,0.46280001,3441.7,3441.6,2.90562529]
[1762544227109,0.00200001,3441.7,3441.6,2.90562529]
[1762544227317,0.00200001,3441.7,3441.6,3.25112529]
[1762544227500,0.00200001,3441.7,3441.6,2.90562529]
[1762544228016,0.46280001,3441.7,3441.6,2.90562529]
[1762544228489,0.00200001,3441.7,3441.6,2.90562529]
[1762544229574,0.46280001,3441.7,3441.4,2.90571437]
[1762544229779,0.46280001,3441.7,3441.6,2.90562529]
[1762544230107,0.00200001,3441.7,3441.6,3.25112529]
[1762544230680,0.00200001,3441.7,3441.6,3.28018154]
[1762544230881,0.00200001,3441.7,3441.6,3.42498154]
[1762544231291,0.00200001,3441.7,3441.6,3.74142529]
[1762544231496,0.00200001,3441.7,3441.6,3.39592529]
[1762544232010,0.00200001,3441.7,3441.6,4.88539354]
[1762544232217,0.00200001,3441.7,3441.6,5.00113729]
[1762544232413,0.00200001,3441.7,3441.6,4.65563729]
[1762544232613,0.00200001,3441.7,3441.6,5.00113729]
[1762544233624,0.00200001,3441.7,3441.6,4.31013729]
[1762544233824,0.00200001,3441.7,3441.6,4.65563729]
[1762544234122,0.00200001,3441.7,3441.6,5.00113729]
[1762544234409,0.00200001,3441.7,3441.6,4.65563729]
[1762544234791,0.00200001,3441.7,3441.6,5.00113729]
[1762544236632,0.1448,3443.0,3441.6,2.095512]
[1762544236831,0.005,3442.9,3442.8,2.90461252]
[1762544236981,0.005,3442.9,3442.8,3.04941252]
[1762544237182,0.939,3442.9,3442.8,3.04941252]
[1762544237817,0.939,3442.9,3442.8,0.1448]
[1762544238023,0.939,3442.9,3442.8,3.04941252]
[1762544238684,0.4658,3442.9,3442.8,3.04941252]
[1762544239384,0.939,3442.9,3442.8,0.1448]
[1762544239589,0.939,3442.9,3442.8,3.04941252]
[1762544239822,0.939,3442.9,3440.8,0.1143]
[1762544239823,1.344504,3442.9,3440.8,0.1143]
[1762544240045,0.405504,3442.6,3441.2,6.89848677]
[1762544240189,0.405504,3442.6,3441.3,1.605212]
[1762544240386,0.405504,3442.4,3442.1,2.90517602]
[1762544240643,0.405504,3442.4,3441.2,6.55298677]
[1762544240847,0.405504,3441.9,3441.0,2.90706263]
[1762544241163,0.405504,3441.9,3441.6,2.9056188]
[1762544241372,0.1896,3441.8,3441.7,2.90554086]
[1762544241866,1.1236,3441.8,3441.6,2.90562024]
[1762544242063,0.6628,3441.8,3441.6,2.90562024]
[1762544242262,0.934,3441.7,3441.6,2.90562024]
[1762544242687,0.4608,3441.7,3441.6,2.90562024]
[1762544243629,0.4608,3441.7,3441.2,2.90596303]
[1762544243823,0.1896,3442.3,3441.7,2.90554086]
[1762544244051,0.595104,3442.3,3442.2,2.90511881]
[1762544244236,1.055904,3442.3,3442.2,2.90511881]
[1762544244456,0.405504,3442.2,3442.1,2.90517478]
[1762544244658,0.405504,3442.2,3441.4,1.259712]
[1762544244659,0.878704,3442.2,3441.4,1.259712]
[1762544244863,0.878704,3442.2,3441.5,2.90570971]
[1762544245058,0.878704,3442.2,3442.1,2.90520321]
[1762544245450,1.339504,3442.2,3442.1,2.90520321]
[1762544245675,1.339504,3442.2,3442.0,2.90527898]
[1762544245870,1.339504,3442.2,3441.5,2.90570971]
[1762544246074,1.339504,3442.2,3442.1,2.90520321]
[1762544246607,1.339504,3442.2,3441.8,2.90540482]
[1762544246754,0.4608,3442.0,3441.9,2.90534043]
[1762544247189,0.4608,3442.0,3441.3,1.259712]
[1762544247349,0.4608,3441.8,3441.7,2.90554086]
[1762544247688,0.4608,3441.8,3441.5,2.90563176]
[1762544247890,0.4608,3441.8,3441.2,1.259712]
[1762544247891,0.4732,3441.7,3441.2,1.259712]
[1762544248118,0.4732,3441.7,3440.7,2.90733846]
[1762544248119,0.4732,3441.7,3440.8,4.16697736]
[1762544248387,0.4732,3441.7,3441.0,2.90710246]
[1762544248596,0.878704,3442.0,3441.2,0.1143]
[1762544248781,0.878704,3442.0,3441.6,2.90554116]
[1762544248950,0.405504,3441.8,3441.7,2.90554086]
[1762544249496,0.1896,3442.3,3441.8,2.90540663]
[1762544249497,0.405504,3442.2,3441.8,2.90540663]
[1762544249788,0.878704,3442.2,3441.8,2.90540663]
[1762544250007,0.866304,3441.9,3441.8,2.90540663]
[1762544250206,1.339504,3441.9,3441.8,2.90540663]
[1762544250559,0.4608,3441.9,3441.8,2.90540663]
[1762544250995,0.934,3441.9,3441.6,3.05034692]
[1762544251209,0.4608,3441.9,3441.8,2.90545644]
[1762544251502,0.934,3441.9,3441.6,3.05040047]
[1762544251716,0.405504,3441.6,3441.1,0.001]
[1762544251875,0.50242368,3441.8,3441.1,0.001]
[1762544251876,0.405504,3441.4,3441.2,2.9059515]
[1762544252076,0.4732,3441.7,3441.3,2.90587859]
[1762544252260,0.405504,3442.1,3441.2,0.02905963]
[1762544252595,0.4507,3442.5,3441.9,2.90534002]
[1762544252794,0.4507,3442.2,3441.2,0.3455]
[1762544252997,0.405504,3442.1,3441.1,0.1153]
[1762544253173,0.405504,3441.9,3441.1,0.001]
[1762544253372,0.405504,3441.9,3441.4,2.90578098]
[1762544253578,0.4783,3441.5,3441.4,2.90578098]
[1762544253784,0.405504,3441.4,3441.1,0.001]
[1762544254120,0.4783,3441.2,3441.1,0.001]
[1762544254261,0.4783,3441.2,3441.1,2.90704748]
[1762544254470,0.405504,3441.3,3441.2,2.90596303]
[1762544254712,0.4507,3441.6,3441.2,2.90596303]
[1762544254876,0.405504,3441.5,3441.4,2.90579415]
[1762544255192,0.405504,3442.2,3441.4,2.90579415]
[1762544255376,0.4507,3441.6,3441.5,2.90570971]
[1762544255780,0.929,3441.6,3441.5,2.90570971]
[1762544255999,0.929,3441.6,3441.1,0.001]
[1762544256294,0.929,3441.5,3441.4,2.90579415]
[1762544256496,0.929,3441.5,3441.1,0.001]
[1762544256699,0.1896,3442.3,3441.1,0.001]
[1762544256700,0.4783,3441.2,3441.1,0.001]
[1762544256903,0.4783,3441.2,3441.1,2.90704748]
[1762544257203,0.929,3441.2,3441.1,2.90704748]
[1762544257862,0.929,3441.2,3441.1,0.001]
[1762544258064,0.929,3441.2,3441.1,2.90704748]
[1762544258798,0.405504,3441.6,3441.3,2.90580693]
[1762544258998,0.4507,3441.5,3441.4,2.90574834]
[1762544259201,0.929,3441.5,3441.4,2.90574834]
[1762544259415,0.405504,3441.8,3441.5,2.90570971]
[1762544259919,0.883804,3441.6,3441.4,2.90576248]
[1762544260108,0.4783,3441.5,3441.4,2.90576248]
[1762544260310,0.4783,3441.5,3441.2,2.90596303]
[1762544260311,0.929,3441.5,3441.2,2.90596303]
[1762544260505,0.929,3441.5,3441.4,2.90579415]
[1762544261295,0.4783,3441.5,3441.4,2.90579415]
[1762544261595,0.1448,3442.0,3441.4,0.4903]
[1762544261794,0.405504,3441.9,3441.6,2.90556163]
[1762544261999,0.405504,3441.9,3441.7,2.90553277]
[1762544262195,0.1448,3442.0,3441.4,0.1448]
[1762544262501,0.1896,3442.3,3442.0,2.90523249]
[1762544262815,0.465,3442.1,3441.8,0.1448]
[1762544263008,0.465,3441.9,3441.8,0.1448]
[1762544263203,0.405504,3441.8,3441.4,0.001]
[1762544263407,0.465,3441.5,3441.4,2.90674763]
[1762544263605,0.465,3441.5,3441.4,0.001]
[1762544263805,0.9175,3441.5,3441.4,3.05159415]
[1762544264584,0.465,3441.5,3441.4,3.05159415]
[1762544264790,0.858004,3441.8,3441.4,0.1458]
[1762544265018,0.405504,3441.6,3441.5,2.90566222]
[1762544265490,0.405504,3441.8,3441.7,2.90554086]
[1762544265688,0.4525,3441.9,3441.4,0.001]
[1762544265689,0.405504,3441.9,3441.4,0.001]
[1762544265886,0.8021612,3442.2,3441.5,0.1448]
[1762544266085,0.405504,3442.1,3441.7,0.1448]
[1762544266286,0.1896,3442.3,3441.9,2.90532245]
[1762544266490,0.6421,3442.3,3441.9,3.05012245]
[1762544266690,0.465,3442.0,3441.9,3.05012245]
[1762544266904,0.870504,3442.0,3441.9,0.1448]
[1762544267098,1.323004,3442.0,3441.9,0.1448]
[1762544267543,1.76476804,3442.0,3441.9,0.1448]
[1762544267842,0.405504,3441.9,3441.7,2.90553098]
[1762544268029,0.858004,3441.9,3441.6,3.05041936]
[1762544268208,0.465,3441.7,3441.6,3.05041936]
[1762544268404,0.405504,3442.1,3441.6,0.1448]
[1762544268605,0.405504,3441.6,3441.4,0.001]
[1762544268843,0.870504,3441.5,3441.4,0.001]
[1762544269218,0.870504,3441.5,3441.4,2.90679415]
[1762544269603,0.870504,3441.5,3441.4,0.001]
[1762544269805,0.870504,3441.5,3441.4,2.90679415]
[1762544270107,1.323004,3441.5,3441.4,0.001]
[1762544270439,0.465,3441.5,3441.4,0.001]
[1762544270740,0.405504,3441.8,3441.4,0.3465]
[1762544270911,0.1448,3441.9,3441.7,2.90554086]
[1762544271115,0.4525,3442.2,3441.9,2.90533839]
[1762544271725,0.002,3442.4,3442.1,0.1448]
[1762544271908,0.4525,3442.3,3441.9,2.90536196]
[1762544272244,0.002,3442.4,3442.3,2.90503442]
[1762544272441,0.002,3442.4,3442.3,3.25053442]
[1762544272642,0.002,3442.4,3442.3,0.1448]
[1762544272845,0.002,3442.4,3441.7,1.259712]
[1762544272846,1.325004,3442.4,3441.7,1.259712]
[1762544273048,0.405504,3442.3,3442.1,0.1448]
[1762544273248,0.002,3442.4,3442.1,0.1448]
[1762544273408,0.002,3442.4,3442.2,2.90511881]
[1762544273612,0.4545,3442.4,3442.2,2.90511881]
[1762544273836,0.465,3442.3,3442.1,0.1448]
[1762544274021,0.870504,3442.2,3442.1,0.1448]
[1762544274319,0.405504,3442.2,3442.1,3.05000321]
[1762544274529,0.002,3442.4,3442.1,3.04992392]
[1762544274948,0.465,3442.2,3442.1,0.1448]
[1762544275365,0.9175,3442.2,3442.1,0.1448]
[1762544275734,0.405504,3442.1,3441.5,1.259712]
[1762544276060,0.405504,3442.1,3441.4,0.001]
[1762544276061,0.405504,3442.0,3441.4,0.001]
[1762544276216,0.465,3441.5,3441.4,0.1458]
[1762544276739,0.9175,3441.5,3441.4,0.1458]
[1762544277126,0.9175,3441.5,3441.4,0.001]
[1762544277127,1.323004,3441.5,3441.4,0.001]
[1762544280134,1.77967802,3441.5,3441.4,0.001]
[1762544282226,1.323004,3441.5,3441.4,0.001]
[1762544283259,4.25793739,3441.5,3441.4,0.001]
[1762544283458,4.71449044,3441.5,3441.4,0.001]
[1762544283763,3.31146703,3441.2,3441.1,0.001]
[1762544283939,5.02275189,3441.2,3441.1,0.001]
[1762544284339,5.43353902,3441.2,3441.1,0.001]
[1762544285276,2.08756518,3441.2,3441.1,0.001]
[1762544285458,1.325504,3441.2,3441.1,0.001]
[1762544285863,0.92,3441.2,3441.1,0.001]
[1762544286175,0.6609,3441.6,3441.1,0.001]
[1762544286383,0.2009,3441.9,3441.1,0.1153]
[1762544286668,0.002,3441.9,3441.8,3.05025644]
[1762544287035,1.526404,3441.9,3441.8,0.1448]
[1762544287236,1.526404,3441.9,3441.8,3.05025644]
[1762544287648,1.526404,3441.9,3441.8,0.1448]
[1762544288732,0.405504,3441.8,3441.1,0.001]
[1762544288935,0.405504,3441.8,3441.4,0.1448]
[1762544288936,0.4525,3441.6,3441.4,0.1448]
[1762544289133,0.405504,3441.4,3441.1,0.001]
[1762544289338,0.4525,3441.2,3441.1,0.1458]
[1762544289748,1.325504,3441.2,3441.1,0.1458]
[1762544290070,0.4525,3441.2,3441.1,0.001]
[1762544290382,0.405504,3441.4,3441.1,0.1458]
[1762544290582,0.405504,3441.6,3441.3,2.90587859]
[1762544290785,0.858004,3441.4,3441.3,2.90587859]
[1762544291146,0.873004,3441.8,3441.3,0.1448]
[1762544291383,0.405504,3441.8,3441.3,0.1448]
[1762544291594,0.2009,3441.9,3441.8,2.90545644]
[1762544291595,0.002,3441.9,3441.8,2.90545644]
[1762544292107,0.4545,3441.9,3441.8,2.90545644]
[1762544292254,0.002,3441.9,3441.8,2.90545644]
[1762544292589,0.002,3441.9,3441.8,4.51066844]
[1762544292794,0.002,3441.9,3441.8,4.85616844]
[1762544295957,0.002,3441.9,3441.8,8.69479144]
[1762544296159,0.002,3441.9,3441.8,26.82711844]
[1762544296356,0.002,3441.9,3441.8,20.85701144]
[1762544296555,0.002,3441.9,3441.8,20.62548044]
[1762544297295,0.005,3442.9,3442.8,2.90461252]
[1762544297456,0.005,3442.9,3442.8,4.85532452]
[1762544297657,1e-08,3442.9,3442.8,10.48976452]
[1762544297872,1e-08,3442.9,3442.8,4.85532452]
[1762544298993,1e-08,3442.9,3442.8,4.50982452]
[1762544303097,1e-08,3442.9,3442.8,4.85532452]
[1762544304399,1e-08,3442.9,3442.8,21.87760152]
[1762544304570,1e-08,3442.9,3442.8,21.66677154]
[1762544305295,0.005,3443.9,3443.8,4.16348109]
[1762544305464,0.005,3443.9,3443.8,4.65378109]
[1762544305875,0.005,3443.9,3443.8,4.30828109]
[1762544306064,1.1239,3443.9,3443.8,4.30828109]
[1762544306273,0.6564,3443.9,3443.8,1.404512]
[1762544306475,1.1239,3443.9,3442.7,0.11627078]
[1762544306700,0.4525,3443.5,3443.4,4.1637646]
[1762544306870,0.4525,3443.5,3442.7,0.18750828]
[1762544307070,0.4525,3443.3,3442.5,0.1536]
[1762544307465,0.4525,3443.3,3443.0,2.90443348]
[1762544307666,0.4525,3443.3,3443.0,2.90444277]
[1762544307868,0.92,3443.3,3442.8,2.9046113]
[1762544308068,0.92,3443.3,3443.0,1.259712]
[1762544308469,0.4525,3443.1,3443.0,4.16415579]
[1762544308698,0.4525,3443.1,3442.1,0.1536]
[1762544308893,0.609404,3443.9,3441.4,0.3465]
[1762544308894,0.4525,3442.8,3441.4,0.3465]
[1762544309175,0.43472768,3442.7,3441.4,2.90671992]
[1762544309383,0.1989,3443.1,3443.0,2.90444379]
[1762544309596,0.1989,3443.1,3442.4,6.37742932]
[1762544309597,0.4675,3443.8,3442.6,0.3455]
[1762544309803,0.405504,3443.7,3442.9,2.90451025]
[1762544310120,0.405504,3443.7,3442.3,0.1536]
[1762544310121,0.405504,3443.7,3443.1,2.90428088]
[1762544310333,0.405504,3443.5,3442.3,0.1536]
[1762544310485,0.405504,3443.5,3443.0,2.90443565]
[1762544310680,0.4675,3443.4,3443.0,2.90443565]
[1762544310905,0.4525,3443.1,3443.0,2.90443565]
[1762544311106,0.2039,3443.9,3442.3,0.1536]
[1762544311323,0.405504,3443.7,3442.5,1.605212]
[1762544311612,0.405504,3443.7,3443.3,2.90418895]
[1762544311817,0.873004,3443.7,3443.2,2.90425295]
[1762544312117,0.4503,3443.6,3443.3,2.90411719]
[1762544312479,0.4503,3443.6,3443.2,2.9042573]
[1762544312685,0.4503,3443.6,3443.1,2.90433267]
[1762544312888,0.4503,3443.6,3443.2,2.90426356]
[1762544313094,0.4503,3443.6,3443.3,2.93316293]
[1762544313387,0.4503,3443.6,3443.3,2.90412103]
[1762544313731,0.4503,3443.6,3442.8,2.90461252]
[1762544313939,0.2039,3443.9,3443.5,2.90402207]
[1762544314140,0.2039,3443.9,3443.6,2.90392753]
[1762544314429,0.005,3443.9,3443.8,2.90376909]
[1762544314715,0.005,3443.9,3443.8,4.50898109]
[1762544316421,0.005,3443.9,3443.8,4.65378109]
[1762544316989,0.007,3443.9,3443.8,4.99928109]
[1762544318225,0.007,3443.9,3443.8,4.65378109]
[1762544318525,0.6845,3443.9,3443.8,1.259712]
[1762544318924,0.6845,3443.9,3443.8,4.16348109]
[1762544319536,0.6845,3443.9,3443.8,1.259712]
[1762544319850,0.007,3443.9,3443.8,1.259712]
[1762544320254,0.007,3443.9,3443.8,4.16348109]
[1762544320440,1.1348,3443.9,3442.5,0.3455]
[1762544320753,0.19,3443.9,3443.7,2.90383416]
[1762544321044,0.19,3443.9,3442.8,0.3465]
[1762544321253,0.4637,3443.8,3443.5,1.259712]
[1762544321457,0.4637,3443.8,3443.4,1.259712]
[1762544321616,0.4637,3443.8,3443.5,2.90402207]
[1762544322337,0.4637,3443.8,3443.6,2.90392848]
[1762544322528,0.4637,3443.8,3443.5,2.90402207]
[1762544323029,0.4643,3443.6,3443.5,2.90402207]
[1762544323530,0.928,3443.6,3443.5,4.16373407]
[1762544324043,0.4643,3443.6,3443.5,4.16373407]
[1762544324440,0.19,3443.9,3443.7,2.90381933]
[1762544324646,0.6601,3443.9,3443.8,0.02903769]
[1762544324843,0.4643,3443.6,3443.5,4.16373407]
[1762544325031,0.4637,3443.8,3443.7,2.90385341]
[1762544325231,0.928,3443.8,3443.7,2.90385341]
[1762544325469,0.928,3443.8,3443.5,1.259712]
[1762544325656,0.4643,3443.6,3443.5,4.16365108]
[1762544325855,0.405504,3443.5,3442.8,0.001]
[1762544326054,0.4637,3443.5,3442.9,2.90446585]
[1762544326237,0.80045815,3443.5,3442.8,0.001]
[1762544326439,0.4637,3443.5,3442.8,0.001]
[1762544326632,0.4637,3443.5,3443.0,2.90441485]
[1762544326834,0.4637,3443.5,3443.1,2.90428336]
[1762544327080,0.4637,3443.5,3442.9,2.90452815]
[1762544327245,0.4637,3443.5,3443.1,2.90434317]
[1762544327434,0.4637,3443.5,3443.1,2.90435273]
[1762544327641,0.4643,3443.2,3442.9,1.259712]
[1762544327836,0.4643,3443.2,3443.1,2.90435944]
[1762544328540,0.8049,3443.9,3443.1,0.17384359]
[1762544328846,1.04393811,3443.9,3443.6,2.90388536]
[1762544329046,0.4643,3443.7,3443.5,2.90399046]
[1762544329242,0.4643,3443.7,3443.6,0.1448]
[1762544329572,0.1964,3443.9,3443.6,0.1448]
[1762544329783,0.4643,3443.7,3443.6,0.1448]
[1762544330140,0.928,3443.7,3443.6,0.1448]
[1762544331450,0.405504,3443.6,3442.9,1.259712]
[1762544331674,0.869204,3443.6,3443.1,0.1448]
[1762544331978,3.77314176,3443.6,3443.1,0.1448]
[1762544332175,0.4643,3443.2,3443.1,0.1448]
[1762544332672,0.928,3443.2,3443.1,0.1448]
[1762544335001,0.405504,3443.1,3442.8,0.001]
[1762544335306,0.5154,3442.9,3442.8,0.001]
[1762544335708,0.9791,3442.9,3442.8,0.1458]
[1762544335904,1.384604,3442.9,3442.8,0.001]
[1762544337604,0.5154,3442.9,3442.8,0.001]
[1762544337776,0.405504,3443.3,3442.8,0.001]
[1762544337983,0.405504,3443.3,3442.8,0.1458]
[1762544338332,0.4637,3443.2,3442.8,0.1458]
[1762544338607,0.405504,3443.5,3442.9,2.90447999]
[1762544338805,0.405504,3443.5,3442.8,3.05037436]
[1762544338806,4.45541108,3443.5,3442.8,3.05037436]
[1762544339011,0.4643,3442.9,3442.8,0.1458]
[1762544339195,0.405504,3443.3,3442.9,2.90452488]
[1762544339393,0.869204,3443.4,3442.9,2.90452488]
[1762544339600,0.4637,3443.3,3442.9,2.90452488]
[1762544339914,0.4637,3443.3,3442.9,2.90451601]
[1762544340211,0.4637,3443.3,3443.0,3.04924023]
[1762544340414,0.4637,3443.3,3443.1,2.90435001]
[1762544340593,0.4643,3443.1,3443.0,3.04921156]
[1762544341109,0.4643,3443.1,3443.0,0.1448]
[1762544341512,0.4643,3443.1,3443.0,3.04924379]
[1762544342221,0.1448,3443.6,3443.0,0.4903]
[1762544342442,0.1964,3443.9,3443.8,2.90376909]
[1762544342888,0.007,3443.9,3443.8,2.90376909]
[1762544343415,0.007,3443.9,3443.8,3.24926909]
[1762544343616,0.007,3443.9,3443.8,3.59476909]
[1762544343786,0.007,3443.9,3443.8,3.24926909]
[1762544344400,0.007,3443.9,3443.8,4.85448109]
[1762544344794,0.007,3443.9,3443.8,9.01590609]
[1762544344998,0.007,3443.9,3443.8,4.85448109]